[Event "Titled Tuesday Blitz February 14 Late 2023"]
[White "Romero Ruscalleda, Josep"]
[Black "Gasparyan, David"]
[WhiteFideId "2231859"]
[BlackFideId "13311980"]
[WhiteElo "2160"]
[BlackElo "2142"]
[Result "0-1"]
[Round "06"]
[TimeControl "180+2"]
[Date "2023.02.14"]
[WhiteClock "0:00:12"]
[BlackClock "0:00:29"]

1. e4 {[%clk 0:02:57]}  c5 {[%clk 0:02:55]} 2. c3 {[%clk 0:02:57]}  d5 {[%clk 0:02:52]} 3. exd5 {[%clk 0:02:57]}  Qxd5 {[%clk 0:02:52]} 4. d4 {[%clk 0:02:58]}  e6 {[%clk 0:02:48]} 5. Nf3 {[%clk 0:02:58]}  Nf6 {[%clk 0:02:48]} 6. Bd3 {[%clk 0:02:57]}  Be7 {[%clk 0:02:46]} 7. Be3 {[%clk 0:02:57]}  O-O {[%clk 0:02:43]} 8. O-O {[%clk 0:02:54]}  b6 {[%clk 0:02:41]} 9. c4 {[%clk 0:02:51]}  Qc6 {[%clk 0:02:38]} 10. Nc3 {[%clk 0:02:50]}  Bb7 {[%clk 0:02:35]} 11. Qe2 {[%clk 0:02:34]}  Rd8 {[%clk 0:02:29]} 12. Rad1 {[%clk 0:02:33]}  cxd4 {[%clk 0:02:29]} 13. Bxd4 {[%clk 0:02:27]}  Na6 {[%clk 0:02:27]} 14. Ne4 {[%clk 0:02:07]}  Nxe4 {[%clk 0:02:24]} 15. Ne5 {[%clk 0:01:56]}  Nc3 {[%clk 0:01:47]} 16. Bxh7+ {[%clk 0:01:43]}  Kf8 {[%clk 0:01:42]} 17. Qg4 {[%clk 0:01:42]}  Rxd4 {[%clk 0:01:38]} 18. Rxd4 {[%clk 0:01:39]}  Qxg2+ {[%clk 0:01:37]} 19. Qxg2 {[%clk 0:01:38]}  Ne2+ {[%clk 0:01:37]} 20. Kh1 {[%clk 0:01:33]}  Bxg2+ {[%clk 0:01:37]} 21. Kxg2 {[%clk 0:01:33]}  Nxd4 {[%clk 0:01:37]} 22. Rd1 {[%clk 0:01:24]}  Nf5 {[%clk 0:01:33]} 23. Rd7 {[%clk 0:01:08]}  Nc5 {[%clk 0:01:27]} 24. Bxf5 {[%clk 0:00:50]}  exf5 {[%clk 0:01:14]} 25. Rc7 {[%clk 0:00:50]}  Ne6 {[%clk 0:01:08]} 26. Rb7 {[%clk 0:00:41]}  Nd8 {[%clk 0:01:00]} 27. Rd7 {[%clk 0:00:38]}  Bf6 {[%clk 0:00:57]} 28. f4 {[%clk 0:00:28]}  Bxe5 {[%clk 0:00:32]} 29. fxe5 {[%clk 0:00:28]}  Ne6 {[%clk 0:00:32]} 30. Kf3 {[%clk 0:00:26]}  Nc5 {[%clk 0:00:31]} 31. Rc7 {[%clk 0:00:24]}  g5 {[%clk 0:00:30]} 32. b4 {[%clk 0:00:22]}  Ne6 {[%clk 0:00:30]} 33. Rd7 {[%clk 0:00:21]}  Kg7 {[%clk 0:00:30]} 34. h3 {[%clk 0:00:17]}  Kg6 {[%clk 0:00:30]} 35. Rd6 {[%clk 0:00:16]}  Rc8 {[%clk 0:00:29]} 36. Rd7 {[%clk 0:00:14]}  Rxc4 {[%clk 0:00:29]} 37. Rxa7 {[%clk 0:00:14]}  Rxb4 {[%clk 0:00:30]} 38. a3 {[%clk 0:00:14]}  Rb3+ {[%clk 0:00:30]} 39. Kf2 {[%clk 0:00:14]}  f4 {[%clk 0:00:29]} 40. Ra6 {[%clk 0:00:14]}  Kf5 {[%clk 0:00:29]} 41. a4 {[%clk 0:00:14]}  Ke4 {[%clk 0:00:29]} 42. a5 {[%clk 0:00:14]}  bxa5 {[%clk 0:00:29]} 43. Rxa5 {[%clk 0:00:14]}  Nd4 {[%clk 0:00:29]} 44. e6 {[%clk 0:00:13]}  Nxe6 {[%clk 0:00:29]} 45. Ra4+ {[%clk 0:00:12]}  Nd4 {[%clk 0:00:30]} 46. h4 {[%clk 0:00:12]}  g4 {[%clk 0:00:30]} 47. Ke1 {[%clk 0:00:12]}  Ke3 {[%clk 0:00:29]} 48. Kd1 {[%clk 0:00:12]}  Rb1# {[%clk 0:00:29]} 0-1


[Site "https://www.chess.com"]

[Event "Titled Tuesday Blitz February 14 Late 2023"]
[White "Buchenau, Frank"]
[Black "Sabar, Ethmane Daouda"]
[WhiteFideId "4604350"]
[BlackFideId "19600097"]
[WhiteElo "2222"]
[BlackElo "2040"]
[Result "0-1"]
[Round "06"]
[TimeControl "180+2"]
[Date "2023.02.14"]
[WhiteClock "0:00:07"]
[BlackClock "0:00:12"]

1. e4 {[%clk 0:02:56]}  e5 {[%clk 0:02:57]} 2. Nf3 {[%clk 0:02:56]}  Nc6 {[%clk 0:02:55]} 3. Bb5 {[%clk 0:02:55]}  f5 {[%clk 0:02:55]} 4. d3 {[%clk 0:02:53]}  fxe4 {[%clk 0:02:54]} 5. dxe4 {[%clk 0:02:53]}  Nf6 {[%clk 0:02:55]} 6. O-O {[%clk 0:02:48]}  Bc5 {[%clk 0:02:47]} 7. Bc4 {[%clk 0:02:44]}  Qe7 {[%clk 0:02:31]} 8. Nc3 {[%clk 0:02:44]}  d6 {[%clk 0:02:30]} 9. Nd5 {[%clk 0:02:37]}  Nxd5 {[%clk 0:02:29]} 10. exd5 {[%clk 0:02:36]}  Nd4 {[%clk 0:02:29]} 11. Nxd4 {[%clk 0:02:35]}  Bxd4 {[%clk 0:02:30]} 12. Qh5+ {[%clk 0:02:27]}  Qf7 {[%clk 0:02:18]} 13. Bb5+ {[%clk 0:02:26]}  Kf8 {[%clk 0:02:05]} 14. Qh4 {[%clk 0:02:16]}  Bf5 {[%clk 0:01:58]} 15. c3 {[%clk 0:02:15]}  Bb6 {[%clk 0:01:54]} 16. Be3 {[%clk 0:02:14]}  h6 {[%clk 0:01:34]} 17. Rad1 {[%clk 0:02:06]}  Kg8 {[%clk 0:01:27]} 18. Bd3 {[%clk 0:01:58]}  g5 {[%clk 0:01:23]} 19. Bxg5 {[%clk 0:01:37]}  Bxd3 {[%clk 0:01:18]} 20. Rxd3 {[%clk 0:01:35]}  hxg5 {[%clk 0:01:16]} 21. Qxg5+ {[%clk 0:01:33]}  Qg7 {[%clk 0:01:12]} 22. Qf5 {[%clk 0:01:27]}  Qf7 {[%clk 0:01:04]} 23. Rg3+ {[%clk 0:01:25]}  Kf8 {[%clk 0:01:04]} 24. Qe4 {[%clk 0:01:21]}  Ke7 {[%clk 0:00:55]} 25. Rf3 {[%clk 0:01:14]}  Qh7 {[%clk 0:00:51]} 26. Qxh7+ {[%clk 0:00:58]}  Rxh7 {[%clk 0:00:52]} 27. g3 {[%clk 0:00:56]}  Rah8 {[%clk 0:00:51]} 28. h4 {[%clk 0:00:56]}  Rg8 {[%clk 0:00:51]} 29. Kh2 {[%clk 0:00:50]}  Rf7 {[%clk 0:00:48]} 30. Rxf7+ {[%clk 0:00:49]}  Kxf7 {[%clk 0:00:49]} 31. Kh3 {[%clk 0:00:48]}  Kg6 {[%clk 0:00:41]} 32. g4 {[%clk 0:00:47]}  Rf8 {[%clk 0:00:40]} 33. f3 {[%clk 0:00:43]}  Rf4 {[%clk 0:00:32]} 34. Kg3 {[%clk 0:00:43]}  c6 {[%clk 0:00:28]} 35. Rd1 {[%clk 0:00:41]}  cxd5 {[%clk 0:00:23]} 36. Rxd5 {[%clk 0:00:40]}  Bc7 {[%clk 0:00:23]} 37. Rb5 {[%clk 0:00:29]}  b6 {[%clk 0:00:21]} 38. b3 {[%clk 0:00:28]}  a6 {[%clk 0:00:15]} 39. Rd5 {[%clk 0:00:28]}  Kf6 {[%clk 0:00:15]} 40. c4 {[%clk 0:00:27]}  Ke6 {[%clk 0:00:15]} 41. Rd1 {[%clk 0:00:24]}  b5 {[%clk 0:00:14]} 42. cxb5 {[%clk 0:00:20]}  axb5 {[%clk 0:00:14]} 43. h5 {[%clk 0:00:20]}  d5 {[%clk 0:00:15]} 44. h6 {[%clk 0:00:20]}  e4 {[%clk 0:00:15]} 45. Kh4 {[%clk 0:00:12]}  exf3 {[%clk 0:00:14]} 46. Kh5 {[%clk 0:00:10]}  f2 {[%clk 0:00:14]} 47. h7 {[%clk 0:00:09]}  Be5 {[%clk 0:00:12]} 48. g5 {[%clk 0:00:09]}  f1=Q {[%clk 0:00:12]} 49. Rxf1 {[%clk 0:00:08]}  Rxf1 {[%clk 0:00:13]} 50. g6 {[%clk 0:00:09]}  Rh1+ {[%clk 0:00:13]} 51. Kg5 {[%clk 0:00:08]}  Bg7 {[%clk 0:00:13]} 52. a4 {[%clk 0:00:07]}  bxa4 {[%clk 0:00:12]} 53. bxa4 {[%clk 0:00:07]}  d4 {[%clk 0:00:13]} 54. a5 {[%clk 0:00:07]}  d3 {[%clk 0:00:12]} 0-1


[Site "https://www.chess.com"]

[Event "Titled Tuesday Blitz February 14 Late 2023"]
[White "Bongo Akanga Ndjila, Barthelemy"]
[Black "Slade, Theodore"]
[WhiteFideId "10609431"]
[BlackFideId "426547"]
[WhiteElo "1824"]
[BlackElo "1995"]
[Result "1-0"]
[Round "06"]
[TimeControl "180+2"]
[Date "2023.02.14"]
[WhiteClock "0:00:53"]
[BlackClock "0:00:15"]

1. d4 {[%clk 0:03:00]}  d5 {[%clk 0:03:00]} 2. c4 {[%clk 0:03:00]}  e6 {[%clk 0:03:00]} 3. Nc3 {[%clk 0:03:00]}  a6 {[%clk 0:03:01]} 4. cxd5 {[%clk 0:03:00]}  exd5 {[%clk 0:03:02]} 5. Qc2 {[%clk 0:02:57]}  c6 {[%clk 0:02:59]} 6. Nf3 {[%clk 0:02:56]}  Bd6 {[%clk 0:02:57]} 7. Bg5 {[%clk 0:02:56]}  Ne7 {[%clk 0:02:55]} 8. e3 {[%clk 0:02:55]}  f6 {[%clk 0:02:54]} 9. Bh4 {[%clk 0:02:53]}  Bf5 {[%clk 0:02:55]} 10. Bd3 {[%clk 0:02:52]}  Bxd3 {[%clk 0:02:56]} 11. Qxd3 {[%clk 0:02:53]}  O-O {[%clk 0:02:56]} 12. O-O {[%clk 0:02:49]}  Nd7 {[%clk 0:02:54]} 13. Bg3 {[%clk 0:02:49]}  Bxg3 {[%clk 0:02:54]} 14. fxg3 {[%clk 0:02:41]}  Nc8 {[%clk 0:02:52]} 15. e4 {[%clk 0:02:41]}  dxe4 {[%clk 0:02:49]} 16. Nxe4 {[%clk 0:02:38]}  Ndb6 {[%clk 0:02:45]} 17. Nc5 {[%clk 0:02:36]}  Nd6 {[%clk 0:02:43]} 18. Ne6 {[%clk 0:02:35]}  Qd7 {[%clk 0:02:32]} 19. Nxf8 {[%clk 0:02:29]}  Rxf8 {[%clk 0:02:33]} 20. Qb3+ {[%clk 0:02:28]}  Nd5 {[%clk 0:02:33]} 21. Rae1 {[%clk 0:02:21]}  Re8 {[%clk 0:02:06]} 22. Rxe8+ {[%clk 0:02:17]}  Qxe8 {[%clk 0:02:07]} 23. Re1 {[%clk 0:02:16]}  Qd8 {[%clk 0:02:07]} 24. a3 {[%clk 0:02:13]}  Nb5 {[%clk 0:02:05]} 25. a4 {[%clk 0:02:06]}  Nd6 {[%clk 0:02:05]} 26. Qa2 {[%clk 0:02:01]}  Kf8 {[%clk 0:01:59]} 27. b4 {[%clk 0:02:00]}  Nxb4 {[%clk 0:01:55]} 28. Qe6 {[%clk 0:01:54]}  Nd5 {[%clk 0:01:51]} 29. g4 {[%clk 0:01:51]}  Qe7 {[%clk 0:01:35]} 30. g5 {[%clk 0:01:50]}  Qxe6 {[%clk 0:01:33]} 31. Rxe6 {[%clk 0:01:49]}  Nc4 {[%clk 0:01:29]} 32. gxf6 {[%clk 0:01:47]}  Nxf6 {[%clk 0:01:26]} 33. Ne5 {[%clk 0:01:43]}  Nb6 {[%clk 0:01:10]} 34. a5 {[%clk 0:01:38]}  Nbd5 {[%clk 0:01:11]} 35. Nc4 {[%clk 0:01:31]}  Nc7 {[%clk 0:00:50]} 36. Re1 {[%clk 0:01:17]}  Nb5 {[%clk 0:00:45]} 37. h3 {[%clk 0:01:11]}  Nd7 {[%clk 0:00:20]} 38. Rf1+ {[%clk 0:01:02]}  Ke7 {[%clk 0:00:19]} 39. Rf4 {[%clk 0:01:02]}  Nf8 {[%clk 0:00:16]} 40. Ne5 {[%clk 0:00:55]}  Ne6 {[%clk 0:00:16]} 41. Rf7+ {[%clk 0:00:54]}  Kd6 {[%clk 0:00:15]} 42. Rd7# {[%clk 0:00:53]} 1-0


[Site "https://www.chess.com"]

[Event "Titled Tuesday Blitz February 14 Late 2023"]
[White "Davidson, Kevin"]
[Black "Manu_ChessExcelsior"]
[WhiteFideId "2056810"]
[WhiteElo "2154"]
[BlackElo "1985"]
[Result "1/2-1/2"]
[Round "06"]
[TimeControl "180+2"]
[Date "2023.02.14"]
[WhiteClock "0:00:01"]
[BlackClock "0:00:03"]

1. e4 {[%clk 0:03:00]}  e5 {[%clk 0:02:59]} 2. Nf3 {[%clk 0:02:58]}  Nc6 {[%clk 0:02:59]} 3. Bb5 {[%clk 0:02:54]}  a6 {[%clk 0:02:59]} 4. Ba4 {[%clk 0:02:50]}  Nf6 {[%clk 0:02:58]} 5. O-O {[%clk 0:02:28]}  Be7 {[%clk 0:02:39]} 6. Re1 {[%clk 0:02:28]}  b5 {[%clk 0:02:39]} 7. Bb3 {[%clk 0:02:28]}  O-O {[%clk 0:02:39]} 8. a4 {[%clk 0:02:28]}  Bb7 {[%clk 0:02:33]} 9. d3 {[%clk 0:02:28]}  d5 {[%clk 0:02:14]} 10. exd5 {[%clk 0:02:19]}  Nxd5 {[%clk 0:02:15]} 11. axb5 {[%clk 0:02:16]}  axb5 {[%clk 0:02:12]} 12. Rxa8 {[%clk 0:02:17]}  Bxa8 {[%clk 0:02:11]} 13. Nxe5 {[%clk 0:02:17]}  Nxe5 {[%clk 0:02:10]} 14. Rxe5 {[%clk 0:02:18]}  Bd6 {[%clk 0:01:46]} 15. Rxd5 {[%clk 0:02:14]}  Bxd5 {[%clk 0:01:44]} 16. Bxd5 {[%clk 0:02:15]}  Bxh2+ {[%clk 0:01:44]} 17. Kxh2 {[%clk 0:02:16]}  Qxd5 {[%clk 0:01:43]} 18. Nc3 {[%clk 0:02:11]}  Qd6+ {[%clk 0:01:38]} 19. g3 {[%clk 0:02:01]}  c6 {[%clk 0:01:38]} 20. Qf3 {[%clk 0:01:41]}  Re8 {[%clk 0:01:14]} 21. Bf4 {[%clk 0:01:31]}  Qf6 {[%clk 0:01:14]} 22. Kg2 {[%clk 0:01:17]}  Qe6 {[%clk 0:00:54]} 23. Be3 {[%clk 0:00:59]}  b4 {[%clk 0:00:46]} 24. Ne4 {[%clk 0:00:53]}  Qd5 {[%clk 0:00:45]} 25. Nc5 {[%clk 0:00:36]}  Qxf3+ {[%clk 0:00:32]} 26. Kxf3 {[%clk 0:00:37]}  f6 {[%clk 0:00:28]} 27. Bd2 {[%clk 0:00:30]}  Rb8 {[%clk 0:00:20]} 28. Ke4 {[%clk 0:00:25]}  Rb5 {[%clk 0:00:19]} 29. Kd4 {[%clk 0:00:20]}  Kf7 {[%clk 0:00:19]} 30. Kc4 {[%clk 0:00:18]}  h5 {[%clk 0:00:19]} 31. Bxb4 {[%clk 0:00:15]}  g5 {[%clk 0:00:20]} 32. Ne4 {[%clk 0:00:10]}  Kg6 {[%clk 0:00:13]} 33. Bc3 {[%clk 0:00:07]}  Rf5 {[%clk 0:00:12]} 34. b4 {[%clk 0:00:05]}  h4 {[%clk 0:00:12]} 35. gxh4 {[%clk 0:00:06]}  gxh4 {[%clk 0:00:13]} 36. Nxf6 {[%clk 0:00:01]}  Rxf6 {[%clk 0:00:10]} 37. b5 {[%clk 0:00:02]}  cxb5+ {[%clk 0:00:10]} 38. Kxb5 {[%clk 0:00:02]}  h3 {[%clk 0:00:10]} 39. Be5 {[%clk 0:00:03]}  Rf5 {[%clk 0:00:11]} 40. d4 {[%clk 0:00:03]}  h2 {[%clk 0:00:10]} 41. c4 {[%clk 0:00:03]}  h1=Q {[%clk 0:00:10]} 42. c5 {[%clk 0:00:03]}  Rxe5 {[%clk 0:00:09]} 43. dxe5 {[%clk 0:00:03]}  Qd5 {[%clk 0:00:09]} 44. f4 {[%clk 0:00:02]}  Kf5 {[%clk 0:00:09]} 45. Kb6 {[%clk 0:00:03]}  Kxf4 {[%clk 0:00:09]} 46. c6 {[%clk 0:00:03]}  Qd8+ {[%clk 0:00:05]} 47. c7 {[%clk 0:00:03]}  Qc8 {[%clk 0:00:05]} 48. e6 {[%clk 0:00:03]}  Ke5 {[%clk 0:00:02]} 49. e7 {[%clk 0:00:04]}  Kd6 {[%clk 0:00:02]} 50. e8=Q {[%clk 0:00:02]}  Qxe8 {[%clk 0:00:02]} 51. Kb7 {[%clk 0:00:03]}  Qd7 {[%clk 0:00:02]} 52. Ka8 {[%clk 0:00:01]}  Qxc7 {[%clk 0:00:03]} 1/2-1/2


[Site "https://www.chess.com"]

[Event "Titled Tuesday Blitz February 14 Late 2023"]
[White "Rodrigues, Tiago Pereira"]
[Black "Vaglio Mattey, Emanuel"]
[WhiteFideId "2101203"]
[BlackFideId "6504167"]
[WhiteElo "2155"]
[BlackElo "2155"]
[Result "1-0"]
[Round "06"]
[TimeControl "180+2"]
[Date "2023.02.14"]
[WhiteClock "0:01:18"]
[BlackClock "0:00:06"]

1. c4 {[%clk 0:02:58]}  c6 {[%clk 0:02:56]} 2. e3 {[%clk 0:02:58]}  d5 {[%clk 0:02:56]} 3. b3 {[%clk 0:02:58]}  Nf6 {[%clk 0:02:56]} 4. Bb2 {[%clk 0:02:59]}  g6 {[%clk 0:02:57]} 5. f4 {[%clk 0:02:59]}  Bg7 {[%clk 0:02:57]} 6. Nf3 {[%clk 0:03:00]}  O-O {[%clk 0:02:58]} 7. Be2 {[%clk 0:03:00]}  Bg4 {[%clk 0:02:59]} 8. Ne5 {[%clk 0:02:59]}  Bxe2 {[%clk 0:02:59]} 9. Qxe2 {[%clk 0:03:00]}  Nbd7 {[%clk 0:03:00]} 10. O-O {[%clk 0:03:00]}  a5 {[%clk 0:02:56]} 11. d3 {[%clk 0:02:57]}  a4 {[%clk 0:02:56]} 12. Nd2 {[%clk 0:02:57]}  axb3 {[%clk 0:02:56]} 13. axb3 {[%clk 0:02:58]}  Nxe5 {[%clk 0:02:55]} 14. Bxe5 {[%clk 0:02:55]}  Nd7 {[%clk 0:02:52]} 15. Bxg7 {[%clk 0:02:54]}  Kxg7 {[%clk 0:02:53]} 16. Nf3 {[%clk 0:02:52]}  Qb6 {[%clk 0:02:51]} 17. Nd4 {[%clk 0:02:51]}  Nc5 {[%clk 0:02:18]} 18. Qc2 {[%clk 0:02:45]}  Qb4 {[%clk 0:01:52]} 19. h3 {[%clk 0:02:43]}  Kg8 {[%clk 0:01:39]} 20. Kh2 {[%clk 0:02:43]}  Ra3 {[%clk 0:01:39]} 21. Rxa3 {[%clk 0:02:42]}  Qxa3 {[%clk 0:01:40]} 22. Rb1 {[%clk 0:02:42]}  Ra8 {[%clk 0:01:36]} 23. b4 {[%clk 0:02:42]}  Na6 {[%clk 0:01:05]} 24. b5 {[%clk 0:02:40]}  Nc5 {[%clk 0:01:04]} 25. bxc6 {[%clk 0:02:35]}  bxc6 {[%clk 0:01:04]} 26. Nxc6 {[%clk 0:02:34]}  dxc4 {[%clk 0:00:32]} 27. Qxc4 {[%clk 0:02:34]}  Qxd3 {[%clk 0:00:28]} 28. Nxe7+ {[%clk 0:02:34]}  Kf8 {[%clk 0:00:28]} 29. Nxg6+ {[%clk 0:02:21]}  hxg6 {[%clk 0:00:17]} 30. Qxc5+ {[%clk 0:02:21]}  Kg8 {[%clk 0:00:18]} 31. Rb7 {[%clk 0:02:01]}  Re8 {[%clk 0:00:18]} 32. Re7 {[%clk 0:01:56]}  Rd8 {[%clk 0:00:12]} 33. Qe5 {[%clk 0:01:52]}  Qe2 {[%clk 0:00:02]} 34. Re8+ {[%clk 0:01:50]}  Rxe8 {[%clk 0:00:02]} 35. Qxe8+ {[%clk 0:01:51]}  Kg7 {[%clk 0:00:02]} 36. Qe5+ {[%clk 0:01:52]}  Kg8 {[%clk 0:00:03]} 37. Qd4 {[%clk 0:01:47]}  Kh7 {[%clk 0:00:03]} 38. Qe4 {[%clk 0:01:40]}  Qf2 {[%clk 0:00:02]} 39. Qe5 {[%clk 0:01:32]}  Kg8 {[%clk 0:00:01]} 40. Qe7 {[%clk 0:01:28]}  Kh7 {[%clk 0:00:02]} 41. Qxf7+ {[%clk 0:01:27]}  Kh6 {[%clk 0:00:03]} 42. Qf8+ {[%clk 0:01:26]}  Kh7 {[%clk 0:00:03]} 43. Qc5 {[%clk 0:01:24]}  Kg7 {[%clk 0:00:03]} 44. Qd4+ {[%clk 0:01:23]}  Kh6 {[%clk 0:00:04]} 45. Qe5 {[%clk 0:01:22]}  Kh7 {[%clk 0:00:03]} 46. Qe4 {[%clk 0:01:22]}  Kh6 {[%clk 0:00:03]} 47. Qf3 {[%clk 0:01:22]}  Qe1 {[%clk 0:00:03]} 48. Qg3 {[%clk 0:01:22]}  Qe2 {[%clk 0:00:03]} 49. Qg5+ {[%clk 0:01:19]}  Kh7 {[%clk 0:00:04]} 50. f5 {[%clk 0:01:17]}  gxf5 {[%clk 0:00:05]} 51. Qxf5+ {[%clk 0:01:18]}  Kg7 {[%clk 0:00:05]} 52. Qg4+ {[%clk 0:01:17]}  Qxg4 {[%clk 0:00:06]} 53. hxg4 {[%clk 0:01:18]} 1-0


[Site "https://www.chess.com"]

[Event "Titled Tuesday Blitz February 14 Late 2023"]
[White "Itkis, Boris"]
[Black "Tworuszka, Michal"]
[WhiteFideId "1209167"]
[BlackFideId "1117858"]
[WhiteElo "2329"]
[BlackElo "2260"]
[Result "0-1"]
[Round "06"]
[TimeControl "180+2"]
[Date "2023.02.14"]
[WhiteClock "0:00:16"]
[BlackClock "0:00:18"]

1. e4 {[%clk 0:03:00]}  e5 {[%clk 0:02:59]} 2. Nf3 {[%clk 0:02:57]}  Nc6 {[%clk 0:02:59]} 3. Nc3 {[%clk 0:02:55]}  Nf6 {[%clk 0:02:58]} 4. Bb5 {[%clk 0:02:54]}  Bb4 {[%clk 0:02:56]} 5. O-O {[%clk 0:02:53]}  d6 {[%clk 0:02:53]} 6. d4 {[%clk 0:02:38]}  Bxc3 {[%clk 0:02:53]} 7. bxc3 {[%clk 0:02:37]}  Bd7 {[%clk 0:02:49]} 8. Bg5 {[%clk 0:02:31]}  Qe7 {[%clk 0:02:34]} 9. Qd3 {[%clk 0:02:16]}  O-O {[%clk 0:02:24]} 10. Rab1 {[%clk 0:02:09]}  a6 {[%clk 0:02:19]} 11. Bxc6 {[%clk 0:02:08]}  bxc6 {[%clk 0:02:12]} 12. Rb7 {[%clk 0:02:05]}  Rfc8 {[%clk 0:01:54]} 13. Rd1 {[%clk 0:02:02]}  exd4 {[%clk 0:01:36]} 14. cxd4 {[%clk 0:01:11]}  Qxe4 {[%clk 0:01:36]} 15. Bxf6 {[%clk 0:01:10]}  Qxd3 {[%clk 0:01:35]} 16. Rxd3 {[%clk 0:01:10]}  gxf6 {[%clk 0:01:36]} 17. c4 {[%clk 0:01:06]}  Rab8 {[%clk 0:01:31]} 18. Rdb3 {[%clk 0:01:06]}  Rxb7 {[%clk 0:01:28]} 19. Rxb7 {[%clk 0:01:07]}  Be6 {[%clk 0:01:18]} 20. Nd2 {[%clk 0:01:04]}  Kf8 {[%clk 0:01:18]} 21. Kf1 {[%clk 0:01:03]}  Ke8 {[%clk 0:01:18]} 22. Ra7 {[%clk 0:01:03]}  Rb8 {[%clk 0:01:16]} 23. Rxa6 {[%clk 0:00:59]}  Rb2 {[%clk 0:01:15]} 24. Ke1 {[%clk 0:00:59]}  Kd7 {[%clk 0:01:10]} 25. Kd1 {[%clk 0:00:57]}  Rb4 {[%clk 0:01:04]} 26. Kc2 {[%clk 0:00:46]}  Bxc4 {[%clk 0:01:03]} 27. Kc3 {[%clk 0:00:46]}  Bxa6 {[%clk 0:00:52]} 28. Kxb4 {[%clk 0:00:47]}  f5 {[%clk 0:00:48]} 29. Nf3 {[%clk 0:00:45]}  h6 {[%clk 0:00:42]} 30. a4 {[%clk 0:00:43]}  Ke6 {[%clk 0:00:42]} 31. Nh4 {[%clk 0:00:34]}  Bd3 {[%clk 0:00:39]} 32. a5 {[%clk 0:00:32]}  Kd5 {[%clk 0:00:38]} 33. Kc3 {[%clk 0:00:30]}  Ba6 {[%clk 0:00:28]} 34. Nxf5 {[%clk 0:00:29]}  c5 {[%clk 0:00:25]} 35. Ne3+ {[%clk 0:00:18]}  Kc6 {[%clk 0:00:23]} 36. d5+ {[%clk 0:00:18]}  Kb5 {[%clk 0:00:22]} 37. Nf5 {[%clk 0:00:17]}  h5 {[%clk 0:00:18]} 38. Nh6 {[%clk 0:00:17]}  Kxa5 {[%clk 0:00:18]} 39. Nxf7 {[%clk 0:00:16]}  Bb7 {[%clk 0:00:18]} 40. h4 {[%clk 0:00:15]}  Bxd5 {[%clk 0:00:18]} 41. f3 {[%clk 0:00:16]}  Bxf7 {[%clk 0:00:17]} 42. g3 {[%clk 0:00:15]}  d5 {[%clk 0:00:17]} 43. g4 {[%clk 0:00:16]}  d4+ {[%clk 0:00:17]} 44. Kd3 {[%clk 0:00:16]}  Kb4 {[%clk 0:00:17]} 45. g5 {[%clk 0:00:16]}  Bg6+ {[%clk 0:00:17]} 46. Kd2 {[%clk 0:00:15]}  c4 {[%clk 0:00:18]} 47. f4 {[%clk 0:00:16]}  c3+ {[%clk 0:00:18]} 0-1


[Site "https://www.chess.com"]

[Event "Titled Tuesday Blitz February 14 Late 2023"]
[White "Mikhalsky, Vladimir"]
[Black "Stachanczyk, Jacek"]
[WhiteFideId "14144352"]
[BlackFideId "1116657"]
[WhiteElo "2219"]
[BlackElo "2147"]
[Result "1/2-1/2"]
[Round "06"]
[TimeControl "180+2"]
[Date "2023.02.14"]
[WhiteClock "0:01:48"]
[BlackClock "0:01:19"]

1. e4 {[%clk 0:02:57]}  c5 {[%clk 0:02:59]} 2. Nf3 {[%clk 0:02:56]}  d6 {[%clk 0:02:58]} 3. d4 {[%clk 0:02:54]}  cxd4 {[%clk 0:02:59]} 4. Nxd4 {[%clk 0:02:54]}  Nf6 {[%clk 0:02:59]} 5. Nc3 {[%clk 0:02:54]}  g6 {[%clk 0:02:59]} 6. f3 {[%clk 0:02:52]}  Bg7 {[%clk 0:02:59]} 7. Be3 {[%clk 0:02:51]}  O-O {[%clk 0:02:59]} 8. Bc4 {[%clk 0:02:51]}  Nc6 {[%clk 0:02:58]} 9. Qd2 {[%clk 0:02:50]}  Bd7 {[%clk 0:02:56]} 10. h4 {[%clk 0:02:49]}  h5 {[%clk 0:02:54]} 11. O-O-O {[%clk 0:02:49]}  Rc8 {[%clk 0:02:52]} 12. Bb3 {[%clk 0:02:49]}  Ne5 {[%clk 0:02:51]} 13. Bh6 {[%clk 0:02:48]}  Bxh6 {[%clk 0:02:18]} 14. Qxh6 {[%clk 0:02:46]}  Rxc3 {[%clk 0:02:19]} 15. bxc3 {[%clk 0:02:46]}  Qa5 {[%clk 0:02:20]} 16. f4 {[%clk 0:02:03]}  Qxc3 {[%clk 0:02:02]} 17. fxe5 {[%clk 0:01:58]}  Qa1+ {[%clk 0:01:58]} 18. Kd2 {[%clk 0:01:58]}  Qxd4+ {[%clk 0:01:59]} 19. Kc1 {[%clk 0:01:49]}  Qa1+ {[%clk 0:01:38]} 20. Kd2 {[%clk 0:01:49]}  Qd4+ {[%clk 0:01:39]} 21. Kc1 {[%clk 0:01:48]}  Qa1+ {[%clk 0:01:19]} 22. Kd2 {[%clk 0:01:48]}  Qd4+ {[%clk 0:01:19]} 1/2-1/2


[Site "https://www.chess.com"]

[Event "Titled Tuesday Blitz February 14 Late 2023"]
[White "Stanisz, Patryk"]
[Black "Sztokbant, Bernardo Vainzoff"]
[WhiteFideId "1123106"]
[BlackFideId "2115956"]
[WhiteElo "2161"]
[BlackElo "2213"]
[Result "0-1"]
[Round "06"]
[TimeControl "180+2"]
[Date "2023.02.14"]
[WhiteClock "0:00:20"]
[BlackClock "0:01:26"]

1. d4 {[%clk 0:03:00]}  Nf6 {[%clk 0:02:59]} 2. c4 {[%clk 0:03:00]}  e6 {[%clk 0:02:57]} 3. Nc3 {[%clk 0:03:00]}  d5 {[%clk 0:02:58]} 4. Nf3 {[%clk 0:03:00]}  Be7 {[%clk 0:02:57]} 5. Bf4 {[%clk 0:03:01]}  O-O {[%clk 0:02:57]} 6. e3 {[%clk 0:03:01]}  b6 {[%clk 0:02:57]} 7. Qc2 {[%clk 0:03:00]}  Bb7 {[%clk 0:02:56]} 8. cxd5 {[%clk 0:03:01]}  exd5 {[%clk 0:02:56]} 9. Bd3 {[%clk 0:02:59]}  c5 {[%clk 0:02:54]} 10. O-O {[%clk 0:02:59]}  Nbd7 {[%clk 0:02:51]} 11. Ne5 {[%clk 0:02:44]}  cxd4 {[%clk 0:02:47]} 12. exd4 {[%clk 0:02:45]}  Nxe5 {[%clk 0:02:45]} 13. Bxe5 {[%clk 0:02:38]}  Rc8 {[%clk 0:02:39]} 14. Bxf6 {[%clk 0:02:01]}  Bxf6 {[%clk 0:02:39]} 15. Bxh7+ {[%clk 0:02:01]}  Kh8 {[%clk 0:02:40]} 16. Bf5 {[%clk 0:02:01]}  Rc7 {[%clk 0:02:37]} 17. Rad1 {[%clk 0:02:01]}  g6 {[%clk 0:02:34]} 18. Bg4 {[%clk 0:01:34]}  Kg7 {[%clk 0:02:30]} 19. Rfe1 {[%clk 0:01:29]}  Re8 {[%clk 0:02:15]} 20. Qd3 {[%clk 0:01:16]}  Rce7 {[%clk 0:02:08]} 21. Rxe7 {[%clk 0:01:14]}  Qxe7 {[%clk 0:02:09]} 22. h3 {[%clk 0:01:14]}  Qb4 {[%clk 0:01:59]} 23. Qb5 {[%clk 0:01:06]}  Qxb5 {[%clk 0:01:50]} 24. Nxb5 {[%clk 0:01:06]}  Re7 {[%clk 0:01:41]} 25. Nxa7 {[%clk 0:00:42]}  Rc7 {[%clk 0:01:30]} 26. Rd2 {[%clk 0:00:20]}  Ba6 {[%clk 0:01:26]} 0-1


[Site "https://www.chess.com"]